fUSD/lending_fUSD_20250708
["ID","MTS","AMOUNT","RATE_DAILY","PERIOD"]
[370324115,1751957469236,-880.95,0.00028826,3]
[370324116,1751957469455,-1285.37,0.00028826,3]
[370324117,1751957469466,-3242.51,0.00028826,3]
[370324118,1751957469477,-1000.0,0.00028826,3]
[370324119,1751957469489,-191.774034,0.00028826,7]
[370324120,1751957469499,-191.774034,0.00028826,7]
[370324121,1751957469508,-460.0,0.00028826,3]
[370324122,1751957469518,-721.15,0.00028826,3]
[370324123,1751957469528,-460.0,0.00028826,3]
[370324124,1751957469537,-3758.07,0.00028826,3]
[370324125,1751957469547,-1318.2,0.00028826,3]
[370324126,1751957469556,-5399.73,0.00028826,3]
[370324127,1751957469566,-687.16,0.00028826,3]
[370324128,1751957469576,-749.57,0.00028826,3]
[370324129,1751957469585,-1102.11,0.00028826,3]
[370324130,1751957469595,-702.02,0.00028826,3]
[370324131,1751957469605,-151.0,0.00028826,7]
[370324132,1751957469614,-669.32,0.00028826,3]
[370324133,1751957469624,-298.9233,0.00028826,7]
[370324134,1751957469633,-2450.27,0.00028826,3]
[370324135,1751957469642,-2094.14,0.00028826,3]
[370324136,1751957469652,-38407.32,0.00028826,3]
[370324137,1751957469661,-1163.23,0.00028826,3]
[370324138,1751957469671,-3605.16,0.00028826,3]
[370324139,1751957469681,-151.0,0.00028826,7]
[370324140,1751957469690,-2464.42,0.00028826,3]
[370324141,1751957469699,-626.3,0.00028826,3]
[370324142,1751957469709,-151.0,0.00028826,7]
[370324143,1751957469719,-6057.79,0.00028826,3]
[370324144,1751957469728,-532.48,0.00028826,3]
[370324145,1751957469737,-457.0,0.00028828,2]
[370324146,1751957469747,-1000.0,0.00028834,2]
[370324147,1751957469755,-1072.92,0.00028839,3]
[370324148,1751957469765,-460.0,0.0002884,3]
[370324149,1751957469775,-531.32,0.0002884,3]
[370324150,1751957469784,-460.0,0.0002884,3]
[370324151,1751957469794,-460.0,0.0002884,3]
[370324152,1751957469803,-538.86490767,0.0002884,3]
[370324153,1751957469813,-460.0,0.0002884,3]
[370324154,1751957469822,-460.0,0.0002884,3]
[370324155,1751957469831,-460.0,0.0002884,3]
[370324156,1751957469841,-460.0,0.0002884,3]
[370324157,1751957469850,-460.0,0.0002884,3]
[370324158,1751957469859,-582.11,0.0002884,3]
[370324159,1751957469869,-528.00252625,0.0002884,3]
[370324160,1751957469878,-460.0,0.0002884,3]
[370324161,1751957469887,-460.0,0.0002884,3]
[370324162,1751957469898,-460.0,0.0002884,3]
[370324163,1751957469908,-517.5,0.0002884,3]
[370324164,1751957469917,-460.0,0.0002884,3]
[370324165,1751957469927,-460.0,0.0002884,3]
[370324166,1751957469937,-460.0,0.0002884,3]
[370324167,1751957469947,-460.0,0.0002884,3]
[370324168,1751957469956,-460.0,0.0002884,3]
[370324169,1751957469965,-2146.21,0.0002884,3]
[370324170,1751957469975,-460.0,0.0002884,3]
[370324171,1751957469984,-1670.26,0.0002884,3]
[370324172,1751957469994,-460.0,0.0002884,3]
[370324173,1751957470003,-595.73925989,0.0002884,3]
[370324174,1751957470012,-465.58,0.0002884,3]
[370324175,1751957470022,-460.0,0.0002884,3]
[370324176,1751957470031,-460.0,0.0002884,3]
[370324177,1751957470041,-460.0,0.0002884,3]
[370324178,1751957470050,-460.0,0.0002884,3]
[370324179,1751957470059,-460.0,0.0002884,3]
[370324180,1751957470068,-460.0,0.0002884,3]
[370324181,1751957470078,-460.0,0.0002884,3]
[370324182,1751957470087,-461.93826339,0.0002884,3]
[370324183,1751957470097,-460.0,0.0002884,3]
[370324184,1751957470106,-460.0,0.0002884,3]
[370324185,1751957470115,-997.03,0.0002884,3]
[370324186,1751957470125,-460.0,0.0002884,3]
[370324187,1751957470134,-460.0,0.0002884,3]
[370324188,1751957470143,-460.0,0.0002884,3]
[370324189,1751957470152,-460.0,0.0002884,3]
[370324190,1751957470161,-460.0,0.0002884,3]
[370324191,1751957470171,-460.0,0.0002884,3]
[370324192,1751957470180,-460.0,0.0002884,3]
[370324193,1751957470189,-460.0,0.0002884,3]
[370324194,1751957470199,-460.0,0.0002884,3]
[370324195,1751957470208,-460.0,0.0002884,3]
[370324196,1751957470217,-526.31256813,0.0002884,3]
[370324197,1751957470226,-460.0,0.0002884,3]
[370324198,1751957470236,-868.35,0.0002884,3]
[370324199,1751957470246,-460.0,0.0002884,3]
[370324200,1751957470256,-1324.05,0.0002884,3]
[370324201,1751957470265,-460.0,0.0002884,3]
[370324202,1751957470274,-460.0,0.0002884,3]
[370324203,1751957470284,-460.0,0.0002884,3]
[370324204,1751957470294,-1370.71,0.0002884,3]
[370324205,1751957470303,-460.0,0.0002884,3]
[370324206,1751957470312,-768.99,0.0002884,3]
[370324207,1751957470321,-460.0,0.0002884,3]
[370324208,1751957470330,-564.69,0.0002884,3]
[370324209,1751957470340,-236.14,0.0002884,3]
[370324210,1751957470349,-491.1384354,0.0002884,3]
[370324211,1751957470358,-460.0,0.0002884,3]
[370324212,1751957470367,-181.28654349,0.0002884,3]
[370324213,1751957470377,-1265.99,0.0002884,3]
[370324214,1751957470386,-460.0,0.0002884,3]
[370324215,1751957470399,-542.28,0.0002884,3]
[370324216,1751957470408,-534.77587518,0.0002884,3]
[370324217,1751957470417,-925.55,0.0002884,3]
[370324218,1751957470427,-1139.92,0.0002884,3]
[370324219,1751957470436,-460.0,0.0002884,3]
[370324220,1751957470445,-491.33000471,0.0002884,3]
[370324221,1751957470455,-620.19,0.0002884,3]
[370324222,1751957470464,-460.0,0.0002884,3]
[370324223,1751957470474,-477.23,0.0002884,3]
[370324224,1751957470484,-460.0,0.0002884,3]
[370324225,1751957470494,-1083.07,0.0002884,3]
[370324226,1751957470504,-606.61,0.0002884,3]
[370324227,1751957470513,-460.0,0.0002884,3]
[370324228,1751957470523,-460.0,0.0002884,3]
[370324229,1751957470533,-460.0,0.0002884,3]
[370324230,1751957470543,-460.0,0.0002884,3]
[370324231,1751957470553,-460.0,0.0002884,3]
[370324232,1751957470563,-536.66,0.0002884,3]
[370324233,1751957470572,-491.00768283,0.0002884,3]
[370324234,1751957470581,-988.55,0.0002884,3]
[370324235,1751957470591,-515.93458339,0.0002884,3]
[370324236,1751957470601,-460.0,0.0002884,3]
[370324237,1751957470611,-847.46,0.0002884,3]
[370324238,1751957470620,-834.23,0.0002884,3]
[370324239,1751957470629,-403.86712687,0.0002884,3]
[370324240,1751957470640,-491.32365194,0.0002884,3]
[370324241,1751957470649,-460.0,0.0002884,3]
[370324242,1751957470659,-460.0,0.0002884,3]
[370324243,1751957470668,-460.0,0.0002884,3]
[370324244,1751957470677,-617.71,0.0002884,3]
[370324245,1751957470687,-460.0,0.0002884,3]
[370324246,1751957470696,-667.19,0.0002884,3]
[370324247,1751957470705,-460.0,0.0002884,3]
[370324248,1751957470715,-1768.75,0.0002884,3]
[370324249,1751957470724,-575.03,0.0002884,3]
[370324250,1751957470733,-460.0,0.0002884,3]
[370324251,1751957470743,-2071.73,0.0002884,3]
[370324252,1751957470753,-1419.55,0.0002884,3]
[370324253,1751957470762,-460.0,0.0002884,3]
[370324254,1751957470771,-572.96395678,0.0002884,3]
[370324255,1751957470781,-489.43,0.0002884,3]
[370324256,1751957470790,-460.0,0.0002884,3]
[370324257,1751957470800,-523.58,0.0002884,3]
[370324258,1751957470810,-460.0,0.0002884,3]
[370324259,1751957470819,-688.74,0.0002884,3]
[370324260,1751957470829,-460.0,0.0002884,3]
[370324261,1751957470838,-460.0,0.0002884,3]
[370324262,1751957470848,-460.0,0.0002884,3]
[370324263,1751957470858,-460.0,0.0002884,3]
[370324264,1751957470867,-483.89266912,0.0002884,3]
[370324265,1751957470876,-642.63,0.0002884,3]
[370324266,1751957470886,-1316.76,0.0002884,3]
[370324267,1751957470897,-460.0,0.0002884,3]
[370324268,1751957470906,-722.56,0.0002884,3]
[370324269,1751957470915,-460.0,0.0002884,3]
[370324270,1751957470925,-460.0,0.0002884,3]
[370324271,1751957470934,-460.0,0.0002884,3]
[370324272,1751957470943,-460.0,0.0002884,3]
[370324273,1751957470952,-460.0,0.0002884,3]
[370324274,1751957470961,-460.0,0.0002884,3]
[370324275,1751957470970,-540.98,0.0002884,3]
[370324276,1751957470980,-460.0,0.0002884,3]
[370324277,1751957470990,-460.0,0.0002884,3]
[370324278,1751957470999,-460.0,0.0002884,3]
[370324279,1751957471008,-460.0,0.0002884,3]
[370324280,1751957471018,-460.0,0.0002884,3]
[370324281,1751957471027,-460.0,0.0002884,3]
[370324282,1751957471037,-460.0,0.0002884,3]
[370324283,1751957471047,-460.0,0.0002884,3]
[370324284,1751957471056,-460.0,0.0002884,3]
[370324285,1751957471066,-460.0,0.0002884,3]
[370324286,1751957471076,-460.0,0.0002884,3]
[370324287,1751957471088,-460.0,0.0002884,3]
[370324288,1751957471098,-683.33,0.0002884,3]
[370324289,1751957471107,-410.32826984,0.0002884,3]
[370324290,1751957471117,-460.0,0.0002884,3]
[370324291,1751957471128,-460.0,0.0002884,3]
[370324292,1751957471137,-460.0,0.0002884,3]
[370324293,1751957471146,-460.0,0.0002884,3]
[370324294,1751957471156,-460.0,0.0002884,3]
[370324295,1751957471167,-460.0,0.0002884,3]
[370324296,1751957471176,-460.0,0.0002884,3]
[370324297,1751957471187,-643.2,0.0002884,3]
[370324298,1751957471196,-544.96,0.0002884,3]
[370324299,1751957471207,-460.0,0.0002884,3]
[370324300,1751957471216,-491.95094832,0.0002884,3]
[370324301,1751957471225,-460.0,0.0002884,3]
[370324302,1751957471235,-2644.46,0.0002884,3]
[370324303,1751957471245,-460.0,0.0002884,3]
[370324304,1751957471255,-460.0,0.0002884,3]
[370324305,1751957471268,-1462.01,0.0002884,3]
[370324306,1751957471277,-460.0,0.0002884,3]
[370324307,1751957471287,-1083.75,0.0002884,3]
[370324308,1751957471296,-1182.68,0.0002884,3]
[370324309,1751957471305,-1056.95,0.0002884,3]
[370324310,1751957471314,-460.0,0.0002884,3]
[370324311,1751957471323,-460.0,0.0002884,3]
[370324312,1751957471332,-2524.4,0.0002884,3]
[370324313,1751957471342,-494.03579323,0.0002884,3]
[370324314,1751957471352,-460.0,0.0002884,3]
[370324315,1751957471362,-460.0,0.0002884,3]
[370324316,1751957471372,-567.55179806,0.0002884,3]
[370324317,1751957471381,-623.73,0.0002884,3]
[370324318,1751957471395,-460.0,0.0002884,3]
[370324319,1751957471404,-1902.06,0.0002884,3]
[370324320,1751957471414,-935.19,0.0002884,3]
[370324321,1751957471424,-460.0,0.0002884,3]
[370324322,1751957471441,-460.0,0.0002884,3]
[370324323,1751957471450,-460.0,0.0002884,3]
[370324324,1751957471459,-723.64,0.0002884,3]
[370324325,1751957471471,-517.5,0.0002884,3]
[370324326,1751957471480,-2281.51,0.0002884,3]
[370324327,1751957471490,-505.51571617,0.0002884,3]
[370324328,1751957471501,-1459.83,0.0002884,3]
[370324329,1751957471511,-3388.41,0.0002884,3]
[370324330,1751957471520,-1522.44,0.0002884,3]
[370324331,1751957471530,-323.77636275,0.0002884,3]
[370324332,1751957471539,-1129.94,0.0002884,3]
[370324333,1751957471549,-460.0,0.0002884,3]
[370324334,1751957471559,-461.54294201,0.0002884,3]
[370324335,1751957471568,-460.0,0.0002884,3]
[370324336,1751957471577,-460.0,0.0002884,3]
[370324337,1751957471586,-491.48012219,0.0002884,3]
[370324338,1751957471595,-460.0,0.0002884,3]
[370324339,1751957471605,-517.5,0.0002884,3]
[370324340,1751957471614,-662.46,0.0002884,3]
[370324341,1751957471623,-460.0,0.0002884,3]
[370324342,1751957471633,-1849.92,0.0002884,3]
[370324343,1751957471642,-460.0,0.0002884,3]
[370324344,1751957471652,-1951.46,0.0002884,3]
[370324345,1751957471661,-1438.85,0.0002884,3]
[370324346,1751957471670,-460.0,0.0002884,3]
[370324347,1751957471679,-460.0,0.0002884,3]
[370324348,1751957471688,-460.0,0.0002884,3]
[370324349,1751957471698,-460.0,0.0002884,3]
[370324350,1751957471707,-1614.06,0.0002884,3]
[370324351,1751957471717,-460.0,0.0002884,3]
[370324352,1751957471726,-3147.82,0.0002884,3]
[370324353,1751957471736,-1119.18,0.0002884,3]
[370324354,1751957471746,-460.0,0.0002884,3]
[370324355,1751957471755,-460.0,0.0002884,3]
[370324356,1751957471765,-2286.63,0.0002884,3]
[370324357,1751957471773,-1516.76,0.0002884,3]
[370324358,1751957471783,-460.0,0.0002884,3]
[370324359,1751957471792,-460.0,0.0002884,3]
[370324360,1751957471802,-460.0,0.0002884,3]
[370324361,1751957471811,-802.54,0.0002884,3]
[370324362,1751957471821,-460.0,0.0002884,3]
[370324363,1751957471830,-460.0,0.0002884,3]
[370324364,1751957471839,-460.0,0.0002884,3]
[370324365,1751957471850,-460.0,0.0002884,3]
[370324366,1751957471860,-460.0,0.0002884,3]
[370324367,1751957471869,-460.0,0.0002884,3]
[370324368,1751957471878,-460.0,0.0002884,3]
[370324369,1751957471887,-462.35140394,0.0002884,3]
[370324370,1751957471897,-3366.56,0.0002884,3]
[370324371,1751957471906,-460.0,0.0002884,3]
[370324372,1751957471915,-1401.12,0.0002884,3]
[370324373,1751957471924,-460.0,0.0002884,3]
[370324374,1751957471934,-460.0,0.0002884,3]
[370324375,1751957471943,-914.97,0.0002884,3]
[370324376,1751957471953,-460.0,0.0002884,3]
[370324377,1751957471963,-521.46,0.0002884,3]
[370324378,1751957471972,-555.82034707,0.0002884,3]
[370324379,1751957471981,-460.0,0.0002884,3]
[370324380,1751957471991,-1246.2,0.0002884,3]
[370324381,1751957472000,-692.12,0.0002884,3]
[370324382,1751957472009,-460.0,0.0002884,3]
[370324383,1751957472018,-460.0,0.0002884,3]
[370324384,1751957472027,-1325.43,0.0002884,3]
[370324385,1751957472036,-460.0,0.0002884,3]
[370324386,1751957472045,-460.0,0.0002884,3]
[370324387,1751957472055,-460.0,0.0002884,3]
[370324388,1751957472064,-891.07,0.0002884,3]
[370324389,1751957472073,-863.04,0.0002884,3]
[370324390,1751957472082,-521.6435196,0.0002884,3]
[370324391,1751957472091,-635.57,0.0002884,3]
[370324392,1751957472101,-460.0,0.0002884,3]
[370324393,1751957472110,-460.0,0.0002884,3]
[370324394,1751957472119,-865.94,0.0002884,3]
[370324395,1751957472128,-557.49,0.0002884,3]
[370324396,1751957472137,-490.65012776,0.0002884,3]
[370324397,1751957472146,-655.03,0.0002884,3]
[370324398,1751957472156,-619.68,0.0002884,3]
[370324399,1751957472165,-2271.27,0.0002884,3]
[370324400,1751957472175,-492.59770095,0.0002884,3]
[370324401,1751957472186,-460.0,0.0002884,3]
[370324402,1751957472196,-460.0,0.0002884,3]
[370324403,1751957472206,-1859.46,0.0002884,3]
[370324404,1751957472215,-151.0,0.0002884,7]
[370324405,1751957472225,-1012.55,0.0002884,3]
[370324406,1751957472234,-460.0,0.0002884,3]
[370324407,1751957472243,-460.0,0.0002884,3]
[370324408,1751957472253,-1576.74,0.0002884,3]
[370324409,1751957472262,-527.08691562,0.0002884,3]
[370324410,1751957472272,-3308.42,0.0002884,3]
[370324411,1751957472284,-483.23,0.0002884,3]
[370324412,1751957472295,-460.0,0.0002884,3]
[370324413,1751957472305,-460.0,0.0002884,3]
[370324414,1751957472316,-460.0,0.0002884,3]
[370324415,1751957472325,-1397.34,0.0002884,3]
[370324416,1751957472334,-2494.28,0.0002884,3]
[370324417,1751957472344,-460.0,0.0002884,3]
[370324418,1751957472353,-460.0,0.0002884,3]
[370324419,1751957472362,-3380.03,0.0002884,3]
[370324420,1751957472371,-460.0,0.0002884,3]
[370324421,1751957472380,-460.0,0.0002884,3]
[370324422,1751957472392,-460.0,0.00028841,3]
[370324423,1751957472401,-460.0,0.00028841,3]
[370324424,1751957472608,-460.0,0.00028841,3]
[370324425,1751957472618,-492.55248659,0.00028841,3]
[370324426,1751957472627,-460.0,0.00028841,3]
[370324427,1751957472637,-460.0,0.00028841,3]
[370324428,1751957472647,-460.0,0.00028841,3]
[370324429,1751957472656,-460.0,0.00028841,3]
[370324430,1751957472666,-460.0,0.00028841,3]
[370324431,1751957472676,-460.0,0.00028841,3]
[370324432,1751957472686,-460.0,0.00028841,3]
[370324433,1751957472695,-460.0,0.00028841,3]
[370324434,1751957472705,-460.0,0.00028841,3]
[370324435,1751957472714,-460.0,0.00028841,3]
[370324436,1751957472723,-460.0,0.00028841,3]
[370324437,1751957472732,-460.0,0.00028841,3]
[370324438,1751957472742,-460.0,0.00028841,3]
[370324439,1751957472751,-460.0,0.00028841,3]
[370324440,1751957472761,-460.0,0.00028841,3]
[370324441,1751957472772,-460.0,0.00028841,3]
[370324442,1751957472783,-460.0,0.00028841,3]
[370324443,1751957472792,-460.0,0.00028841,3]
[370324444,1751957472802,-151.0,0.00028841,7]
[370324445,1751957472813,-151.0,0.00028841,7]
[370324446,1751957472823,-460.0,0.00028841,3]
[370324447,1751957472834,-460.0,0.00028841,3]
[370324448,1751957472844,-460.0,0.00028841,3]
[370324449,1751957472855,-460.0,0.00028841,3]
[370324450,1751957472866,-460.0,0.00028841,3]
[370324451,1751957472876,-460.0,0.00028841,3]
[370324452,1751957472887,-460.0,0.00028841,3]
[370324453,1751957472900,-460.0,0.00028841,3]
[370324454,1751957472910,-679.71,0.00028841,3]
[370324455,1751957472920,-499.76,0.00028841,3]
[370324456,1751957472930,-460.0,0.00028841,3]
[370324457,1751957472941,-460.0,0.00028841,3]
[370324458,1751957472951,-460.0,0.00028841,3]
[370324459,1751957472961,-460.0,0.00028841,3]
[370324460,1751957472971,-866.88,0.00028841,3]
[370324461,1751957472981,-540.46,0.00028841,3]
[370324462,1751957472990,-524.16604857,0.00028841,3]
[370324463,1751957473000,-460.0,0.00028841,3]
[370324464,1751957473010,-460.0,0.00028841,3]
[370324465,1751957473019,-460.0,0.00028841,3]
[370324466,1751957473031,-460.0,0.00028841,3]
[370324467,1751957473040,-482.35,0.00028841,3]
[370324468,1751957473052,-460.0,0.00028841,3]
[370324469,1751957473062,-460.0,0.00028841,3]
[370324470,1751957473072,-460.0,0.00028841,3]
[370324471,1751957473083,-460.0,0.00028841,3]
[370324472,1751957473094,-651.55,0.00028841,3]
[370324473,1751957473105,-547.03,0.00028841,3]
[370324474,1751957473114,-460.0,0.00028841,3]
[370324475,1751957473123,-460.0,0.00028841,3]
[370324476,1751957473134,-587.52,0.00028841,3]
[370324477,1751957473145,-460.0,0.00028841,3]
[370324478,1751957473155,-528.45,0.00028841,3]
[370324479,1751957473165,-460.0,0.00028841,3]
[370324480,1751957473176,-460.0,0.00028841,3]
[370324481,1751957473186,-481.86,0.00028841,3]
[370324482,1751957473197,-460.0,0.00028841,3]
[370324483,1751957473208,-460.0,0.00028841,3]
[370324484,1751957473217,-538.93,0.00028841,3]
[370324485,1751957473226,-460.0,0.00028841,3]
[370324486,1751957473235,-460.0,0.00028841,3]
[370324487,1751957473244,-460.0,0.00028841,3]
[370324488,1751957473253,-460.0,0.00028841,3]
[370324489,1751957473262,-460.0,0.00028841,3]
[370324490,1751957473271,-460.0,0.00028841,3]
[370324491,1751957473281,-538.39,0.00028841,3]
[370324492,1751957473291,-460.0,0.00028841,3]
[370324493,1751957473302,-460.0,0.00028841,3]
[370324494,1751957473312,-460.0,0.00028841,3]
[370324495,1751957473321,-460.0,0.00028841,3]
[370324496,1751957473330,-460.0,0.00028841,3]
[370324497,1751957473339,-460.0,0.00028841,3]
[370324498,1751957473348,-460.0,0.00028841,3]
[370324499,1751957473357,-460.0,0.00028841,3]
[370324500,1751957473367,-460.0,0.00028841,3]
[370324501,1751957473376,-460.0,0.00028841,3]
[370324502,1751957473386,-460.0,0.00028841,3]
[370324503,1751957473401,-460.0,0.00028841,3]
[370324504,1751957473410,-568.23,0.00028841,3]
[370324505,1751957473419,-460.0,0.00028841,3]
[370324506,1751957473428,-460.0,0.00028841,3]
[370324507,1751957473438,-460.0,0.00028841,3]
[370324508,1751957473448,-460.0,0.00028841,3]
[370324509,1751957473457,-460.0,0.00028841,3]
[370324510,1751957473467,-460.0,0.00028841,3]
[370324511,1751957473476,-497.18,0.00028841,3]
[370324512,1751957473485,-191.88682712,0.00028841,3]
[370324513,1751957473496,-460.0,0.00028841,3]
[370324514,1751957473505,-460.0,0.00028841,3]
[370324515,1751957473513,-460.0,0.00028841,3]
[370324516,1751957473523,-460.0,0.00028841,3]
[370324517,1751957473532,-460.0,0.00028841,3]
[370324518,1751957473542,-470.37,0.00028841,3]
[370324519,1751957473551,-542.57,0.00028841,3]
[370324520,1751957473560,-460.0,0.00028841,3]
[370324521,1751957473572,-460.0,0.00028841,3]
[370324522,1751957473582,-460.0,0.00028841,3]
[370324523,1751957473592,-460.0,0.00028841,3]
[370324524,1751957473601,-460.0,0.00028841,3]
[370324525,1751957473612,-460.0,0.00028841,3]
[370324526,1751957473621,-460.0,0.00028841,3]
[370324527,1751957473631,-460.0,0.00028841,3]
[370324528,1751957473640,-151.0,0.00028841,7]
[370324529,1751957473649,-460.0,0.00028841,3]
[370324530,1751957473658,-460.0,0.00028841,3]
[370324531,1751957473667,-186.738738,0.00028841,7]
[370324532,1751957473677,-460.0,0.00028841,3]
[370324533,1751957473686,-460.0,0.00028841,3]
[370324534,1751957473695,-151.0,0.00028841,7]
[370324535,1751957473704,-460.0,0.00028841,3]
[370324536,1751957473714,-460.0,0.00028841,3]
[370324537,1751957473724,-482.38,0.00028841,3]
[370324538,1751957473733,-553.14,0.00028841,3]
[370324539,1751957473743,-460.0,0.00028841,3]
[370324540,1751957473752,-819.97,0.00028841,3]
[370324541,1751957473761,-151.0,0.00028841,7]
[370324542,1751957473770,-460.0,0.00028841,3]
[370324543,1751957473779,-460.0,0.00028841,3]
[370324544,1751957473788,-460.0,0.00028841,3]
[370324545,1751957473798,-510.79,0.00028841,3]
[370324546,1751957473807,-460.0,0.00028841,3]
[370324547,1751957473816,-460.0,0.00028841,3]
[370324548,1751957473826,-460.0,0.00028841,3]
[370324549,1751957473835,-460.0,0.00028841,3]
[370324550,1751957473844,-460.0,0.00028841,3]
[370324551,1751957473853,-460.0,0.00028841,3]
[370324552,1751957473862,-460.0,0.00028841,3]
[370324553,1751957473871,-460.0,0.00028841,3]
[370324554,1751957473880,-460.0,0.00028841,3]
[370324555,1751957473889,-460.0,0.00028841,3]
[370324556,1751957473898,-460.0,0.00028841,3]
[370324557,1751957473907,-460.0,0.00028841,3]
[370324558,1751957473917,-476.42,0.00028841,3]
[370324559,1751957473926,-152.51388,0.00028841,7]
[370324560,1751957473935,-460.0,0.00028841,3]
[370324561,1751957473944,-460.0,0.00028841,3]
[370324562,1751957473953,-582.68,0.00028841,3]
[370324563,1751957473967,-460.0,0.00028841,3]
[370324564,1751957473976,-460.0,0.00028841,3]
[370324565,1751957473985,-460.0,0.00028841,3]
[370324566,1751957474003,-151.0,0.00028841,7]
[370324567,1751957474012,-520.0,0.00028841,3]
[370324568,1751957474021,-460.0,0.00028841,3]
[370324569,1751957474031,-460.0,0.00028841,3]
[370324570,1751957474040,-151.0,0.00028841,7]
[370324571,1751957474050,-460.0,0.00028841,3]
[370324572,1751957474059,-558.63,0.00028841,3]
[370324573,1751957474069,-460.0,0.00028841,3]
[370324574,1751957474079,-460.0,0.00028841,3]
[370324575,1751957474088,-460.0,0.00028841,3]
[370324576,1751957474097,-460.0,0.00028841,3]
[370324577,1751957474106,-460.0,0.00028841,3]
[370324578,1751957474115,-493.19,0.00028841,3]
[370324579,1751957474124,-460.0,0.00028841,3]
[370324580,1751957474134,-460.0,0.00028841,3]
[370324581,1751957474143,-460.0,0.00028841,3]
[370324582,1751957474153,-460.0,0.00028841,3]
[370324583,1751957474162,-803.78,0.00028841,3]
[370324584,1751957474172,-460.0,0.00028841,3]
[370324585,1751957474181,-460.0,0.00028841,3]
[370324586,1751957474190,-460.0,0.00028841,3]
[370324587,1751957474199,-460.0,0.00028841,3]
[370324588,1751957474209,-1596.12,0.00028841,3]
[370324589,1751957474218,-460.0,0.00028841,3]
[370324590,1751957474227,-460.0,0.00028841,3]
[370324591,1751957474236,-815.8,0.00028841,3]
[370324592,1751957474247,-460.0,0.00028841,3]
[370324593,1751957474256,-460.0,0.00028841,3]
[370324594,1751957474266,-460.0,0.00028841,3]
[370324595,1751957474275,-460.0,0.00028841,3]
[370324596,1751957474284,-1152.76,0.00028841,3]
[370324597,1751957474294,-460.0,0.00028841,3]
[370324598,1751957474303,-460.0,0.00028841,3]
[370324599,1751957474314,-460.0,0.00028841,3]
[370324600,1751957474323,-460.0,0.00028841,3]
[370324601,1751957474333,-460.0,0.00028841,3]
[370324602,1751957474342,-460.0,0.00028841,3]
[370324603,1751957474351,-460.0,0.00028841,3]
[370324604,1751957474363,-460.0,0.00028841,3]
[370324605,1751957474372,-460.0,0.00028841,3]
[370324606,1751957474382,-460.0,0.00028841,3]
[370324607,1751957474392,-460.0,0.00028841,3]
[370324608,1751957474404,-460.0,0.00028841,3]
[370324609,1751957474413,-460.0,0.00028841,3]
[370324610,1751957474422,-460.0,0.00028841,3]
[370324611,1751957474431,-460.0,0.00028841,3]
[370324612,1751957474441,-460.0,0.00028841,3]
[370324613,1751957474450,-151.0,0.00028841,7]
[370324614,1751957474460,-460.0,0.00028841,3]